Cogmind - Beta 15 @@@ ROGUE MODE // 2025.07.14 @ 13:19:59 Player: daxter767676 Result: Destroyed by E4-79N(R) with Subdweller Shrapnel Launcher Performance ------------- Evolutions (0) 0 Regions Visited (2) 400 Robots Destroyed (20) 100 Value Destroyed (474) 474 Prototype IDs (0) 0 Alien Tech Used (0) 0 Bonus (0) 0 TOTAL SCORE: 974 Bonus ------- None Cogmind --------- Core Integrity 0/250 Matter 270/300 Energy 125/125 System Corruption 0% Temperature Cool (0) Movement Rolling (100) Location -10/Subcaves Parts ------- > --- POWER (1) -------- Light Ion Engine > --- PROPULSION (2) --- Compact Wheel > --- UTILITY (2) ------ Medium Storage Unit Seismic Detector > --- WEAPON (2) ------- (None) > --- INVENTORY (10) --- Light Ion Engine Light Nuclear Core Subdweller Monowheel Improved Heat Sink Structural Scanner Terrain Scan Processor Scrap Shield Tractor Beam Welding Torch Peak State ------------ > --- POWER ------------ Light Ion Engine > --- PROPULSION ------- Aluminum Leg Subdweller Monowheel > --- UTILITY ---------- Medium Storage Unit Seismic Detector > --- WEAPON ----------- Assault Rifle Grenade Launcher > --- INVENTORY -------- Light Ion Engine Light Nuclear Core Compact Wheel Compact Wheel Improved Heat Sink Structural Scanner Terrain Scan Processor Tractor Beam Welding Torch [Rating: 9] Favorites ----------- Power Light Ion Engine Engine Light Ion Engine Propulsion Aluminum Leg Leg Aluminum Leg Wheel Subdweller Monowheel Utility Seismic Detector Device Seismic Detector Storage Medium Storage Unit Weapon Small Laser Energy Gun Small Laser Ballistic Gun Assault Rifle Launcher Grenade Launcher Special Weapon Welding Torch Build | -11 -10 -10 ------- Run | Yrd Mat Sub Slots Evolved . | . . . Power . | . . . Propulsion . | . . . Utility . | . . . Weapon . | . . . Parts Attached 15 | 2 9 4 Power 3 | . 3 . Engine 3 | . 3 . Core . | . . . Reactor . | . . . Propulsion 5 | . 2 3 Treads . | . . . Leg 2 | . 2 . Wheel 3 | . . 3 Hover . | . . . Flight . | . . . Utility 3 | 2 1 . Device 2 | 2 . . Storage 1 | . 1 . Processor . | . . . Hackware . | . . . Protection . | . . . Artifact . | . . . Weapon 4 | . 3 1 Energy Gun 1 | . 1 . Energy Cannon . | . . . Ballistic Gun 1 | . 1 . Ballistic Cannon . | . . . Launcher 1 | . . 1 Special Weapon 1 | . 1 . Impact Weapon . | . . . Slashing Weapon . | . . . Piercing Weapon . | . . . Special Melee Weapon . | . . . Unidentified Prototypes . | . . . Parts Lost 5 | . . 5 Power . | . . . Propulsion 2 | . . 2 Utility . | . . . Weapon 3 | . . 3 Highest Loss Streak 3 | . . 3 To Critical Strikes . | . . . Average Backups 9 | 7 9 9 Power 2 | 1 2 2 Propulsion 2 | 4 2 1 Utility 3 | . 3 4 Weapon 1 | 1 1 . Tool/Special . | . . . Unused Backups 17 | 6 5 6 Power 5 | 1 2 2 Propulsion 5 | 2 3 . Utility 5 | 1 . 4 Weapon 2 | 2 . . Tool/Special . | . . . Average Slot Usage (%) 98 | . 100 94 Engine 14 | . 14 14 Leg 26 | . 28 20 Wheel 1 | . . 6 Device 14 | . 14 14 Storage 14 | . 14 14 Energy Gun 15 | . 18 7 Ballistic Gun 10 | . 9 13 Peak Build Rating 9 | 7 8 9 Average Rating 7 | 6 7 7 On Entrance 7 | 6 7 8 Naked Turns . | . . . Heaviest Build 19 | 12 17 19 Greatest Support 32 | 20 20 32 Greatest Overweight (x) 1 | . . 1 Average Overweight (x) . | . . . Largest Inventory Capacity 10 | 8 10 10 Average Capacity 9 | 8 9 10 Most Carried 10 | 8 10 10 Average Carried 9 | 6 9 9 Final Capacity 10 | 8 10 10 Final Carried 10 | 8 10 10 Class Distribution -------------------- 100% | Mutant Dominant Class ---------------- Mutant | -10/Materials Mutant | -10/Subcaves Resources | -11 -10 -10 ----------- Run | Yrd Mat Sub Matter Collected 464 | 220 147 97 Remotely 10 | 10 . . Salvage Created 575 | 92 336 147 Parts 39 | 6 24 9 Haulers Intercepted 1 | . 1 . Recyclers Shooed . | . . . Parts Field Recycled . | . . . Retrieved Matter . | . . . Parts Self-Destructed 8 | . . 8 Prevented . | . . . Kills | -11 -10 -10 ------- Run | Yrd Mat Sub Combat Hostiles Destroyed 12 | . 9 3 Guns 12 | . 9 3 Classes Destroyed 10 | 2 7 1 Worker 1 | . 1 . Builder 1 | . 1 . Tunneler 1 | 1 . . Hauler 1 | . 1 . Recycler 1 | 1 . . Operator 1 | . 1 . Watcher 2 | . 2 . Swarmer 6 | . 6 . Grunt 3 | . 3 . Subdweller 3 | . . 3 Best Kill Streak 4 | 1 4 1 Combat Bots Only 3 | . 3 1 Max Kills in Single Turn 2 | 1 2 1 Gunslinging . | . . . Exploded . | . . . Melee . | . . . Uniques/NPCs Destroyed . | . . . Combat | -11 -10 -10 -------- Run | Yrd Mat Sub Hostile Shots Fired 59 | . 25 34 Missed 15 | . 7 8 Hits 44 | . 18 26 Projectile 44 | . 18 26 AOE 3 | . . 3 Critical Strikes 1 | . . 1 Damage Taken 935 | . 264 671 Core 252 | . 32 220 Absorbed by Shields . | . . . Core Remaining (%) 100 | 100 . . Volleys Fired 68 | 7 37 24 Largest 2 | 2 2 2 Hottest 80 | 80 80 60 Shots Fired 120 | 13 70 37 Gun 114 | 13 68 33 Cannon . | . . . Launcher 4 | . . 4 Special 2 | . 2 . Kinetic 43 | . 19 24 Thermal 50 | 6 35 9 Explosive 4 | . . 4 Electromagnetic 23 | 7 16 . Robot Hit Streak 12 | 4 9 12 Robot Miss Streak 5 | 2 5 2 Penetration Max . | . . . Secondary Targets 2 | . 1 1 Max Gunslinging Chain 1 | . 1 1 Shots Hit Robots 72 | 7 37 28 Core Hits 29 | 3 19 7 Critical Kills 2 | . 1 1 Critical Parts Destroyed . | . . . Critical Strikes 2 | . 1 1 Destroy 2 | . 1 1 Melee Attacks . | . . . Impact . | . . . Slashing . | . . . Piercing . | . . . Sneak Attacks . | . . . Combat Hostiles . | . . . Follow-up Attacks . | . . . Damage Inflicted 1066 | 85 671 310 Guns 797 | 85 440 272 Cannons . | . . . Explosions 269 | . 231 38 Melee . | . . . Ramming . | . . . Kinetic 336 | . 128 208 Thermal 515 | 34 417 64 Explosive 38 | . . 38 Electromagnetic 177 | 51 126 . Impact . | . . . Slashing . | . . . Piercing . | . . . Highest Corruption . | . . . Average Corruption . | . . . Corruption Purged . | . . . Corruption Blocked . | . . . Overload Shots . | . . . Overflow Damage 91 | . 91 . Projectiles . | . . . Explosions 91 | . 91 . Melee . | . . . Knockbacks . | . . . Impact . | . . . Kinetic . | . . . Secondary . | . . . Self-Inflicted Damage 93 | . 68 25 Shots 4 | . 2 2 Rammed . | . . . Targets Rammed . | . . . Kicked . | . . . Crushed . | . . . Highest Temperature 126 | 54 126 . Average Temperature 34 | 30 36 . Received Heat Transfer 207 | . 66 141 Siege Activations . | . . . Martial Activations . | . . . Shielding Activations . | . . . Robots Disrupted . | . . . Combat Hostiles . | . . . Robots Corrupted . | . . . Combat Hostiles . | . . . Parts Fried . | . . . Impact Corruptions . | . . . Robots Melted . | . . . Combat Hostiles . | . . . Parts Melted . | . . . Heat Transferred 800 | 75 575 150 Parts Sabotaged . | . . . Parts Stolen . | . . . Parts Stripped . | . . . Power Chain Reactions . | . . . Alert | -11 -10 -10 ------- Run | Yrd Mat Sub Maximum Alert Level 1 | . 1 . Low Security (%) 96 | 100 96 . Level 1 3 | . 3 . Level 2 . | . . . Level 3 . | . . . Level 4 . | . . . Level 5 . | . . . High Security . | . . . Max Security . | . . . Peak Influence 350 | 5 350 . Initial . | . . . Average 73 | 1 78 . Influence Increases 523 | 10 513 . Destroy 0b10 Robot/C 180 | . 180 . Destroy 0b10 Robot/NC 40 | 10 30 . Destroy Leader 36 | . 36 . Successful Hack 36 | . 36 . Disable Machine 165 | . 165 . Destroy Structure 36 | . 36 . Partial Spotted 15 | . 15 . Lose Combat Pursuer 15 | . 15 . Influence Decreases 523 | 10 513 . Time Decay 373 | 10 363 . Purge Threat 150 | . 150 . Squads Dispatched . | . . . Investigation . | . . . Extermination . | . . . Reinforcement . | . . . Assault . | . . . Garrison . | . . . Intercept . | . . . Searches Triggered . | . . . Construction Impeded . | . . . Haulers Reinforced . | . . . Active Scanning Responses . | . . . Cargo Convoy Interrupts . | . . . Stealth | -11 -10 -10 --------- Run | Yrd Mat Sub Distress Signals . | . . . Communications Jammed . | . . . Distress Signals . | . . . Times Spotted 19 | . 15 4 Peak Tracking Total 3 | . 3 2 Tactical Retreats 1 | . 1 . Traps | -11 -10 -10 ------- Run | Yrd Mat Sub Traps Triggered . | . . . Indirectly . | . . . Trap Hack Attempts . | . . . Triggered . | . . . Disarmed . | . . . Reprogrammed . | . . . Reused . | . . . Traps Extracted . | . . . Installed . | . . . Triggered . | . . . Machines | -11 -10 -10 ---------- Run | Yrd Mat Sub Machines Disabled 11 | . 11 . Max in Single Turn 11 | . 11 . Machines Repaired . | . . . Machines Dismantled . | . . . Machines Sabotaged . | . . . Overloaded Fab Kills . | . . . Hacking | -11 -10 -10 --------- Run | Yrd Mat Sub Machines Accessed 8 | . 8 . Terminals 6 | . 6 . Fabricators . | . . . Repair Stations . | . . . Recycling Units 2 | . 2 . Scanalyzers . | . . . Garrison Access . | . . . Total Hacks 22 | . 22 . Successful 16 | . 16 . Failed 6 | . 6 . Catastrophic . | . . . Database Lockouts . | . . . Manual 20 | . 20 . Terminals 18 | . 18 . Fabricators . | . . . Repair Stations . | . . . Recycling Units 4 | . 4 . Scanalyzers . | . . . Garrison Access . | . . . Terminal Hacks 2 | . 2 . Unreport Threat 1 | . 1 . Locate Traps 1 | . 1 . Fabricator Hacks . | . . . Repair Station Hacks . | . . . Recycling Unit Hacks . | . . . Scanalyzer . | . . . Garrison Access Hacks . | . . . Unauthorized Hacks 13 | . 13 . Terminals 11 | . 11 . Assimilate 1 | . 1 . Botnet 5 | . 5 . Skim 5 | . 5 . Fabricators . | . . . Repair Stations . | . . . Recycling Units 2 | . 2 . Recyclers 2 | . 2 . Scanalyzers . | . . . Garrison Access . | . . . Data Cores Recovered 1 | . 1 . Used 1 | . 1 . Hacking Detections 8 | . 8 . Full Trace Events . | . . . Feedback Events . | . . . Feedback Blocked . | . . . Robot Schematics Acquired . | . . . Robots Built . | . . . Authchips . | . . . Time . | . . . Total Robot Build Rating . | . . . Part Schematics Acquired . | . . . Parts Built . | . . . Authchips . | . . . Time . | . . . Total Part Build Rating . | . . . Parts Repaired . | . . . Time . | . . . Parts Recycled . | . . . Recycled Matter . | . . . Retrieved Matter . | . . . Retrieved Components . | . . . Parts Scanalyzed . | . . . Part Schematics Acquired . | . . . Parts Damaged . | . . . Bothacking | -11 -10 -10 ------------ Run | Yrd Mat Sub Used RIF Installer . | . . . Robots Hacked . | . . . Non-combat . | . . . Combat . | . . . Robot Hacks Applied . | . . . Relay Couplers Released . | . . . Fabnet Peak Effective % . | . . . Robots Rewired . | . . . Allies Hacked . | . . . Hacks Repelled . | . . . Allies | -11 -10 -10 -------- Run | Yrd Mat Sub Total Allies . | . . . Largest Group . | . . . Highest-Rated Group . | . . . Highest-Rated Ally . | . . . Total Orders . | . . . Ally Attacks . | . . . Total Damage . | . . . Kills . | . . . Allies Corrupted . | . . . Allies Melted . | . . . Intel | -11 -10 -10 ------- Run | Yrd Mat Sub Active Infowar (turns) 1448 | 23 1122 303 Seismic 1448 | 23 1122 303 Robot Analysis Total . | . . . Derelict Logs Recovered 2 | . . 2 Drone Launches . | . . . Drone Recoveries . | . . . Exploration | -11 -10 -10 ------------- Run | Yrd Mat Sub Turns Passed 1501 | 76 1122 303 Spaces Moved 1017 | 43 787 187 Core . | . . . Treads . | . . . Legs 932 | 43 787 102 Wheels 85 | . . 85 Hover . | . . . Flight . | . . . Fastest Speed 100 | 120 120 100 Average Speed 119 | 120 120 115 Slowest Speed 190 | 120 120 190 Overloaded Moves . | . . . Propulsion Burnouts . | . . . Robots Hopped . | . . . Potential Cave-ins . | . . . Cave-ins Triggered . | . . . Exploration Rate (%) 38 | 4 95 16 Regions Visited 2 Branch Regions 1 Pre-discovered Areas 2 | . 1 1 Known Exits Taken 1 | . 1 . Unknown Exits Taken 1 | 1 . . Scrap Searched . | . . . Spaces Dug . | . . . Terrain Destroyed 63 | . 40 23 Melee . | . . . Projectile . | . . . AOE 63 | . 40 23 Terrain Rammed . | . . . Walls Destroyed . | . . . Machines Disabled . | . . . Actions | -11 -10 -10 --------- Run | Yrd Mat Sub Total 1188 | 53 899 236 Wait 68 | . 49 19 Move 1015 | 42 786 187 Hop . | . . . Pick Up 10 | 2 7 1 Fast Attach 3 | 1 1 1 Attach 2 | . 1 1 Detach . | . . . Swap 10 | 1 7 2 Drop 12 | . 11 1 Fire 68 | 7 37 24 Melee . | . . . Ram . | . . . Kick . | . . . Crush . | . . . Escape Stasis . | . . . Rewire . | . . . Trap . | . . . Miscellaneous . | . . . Route ------- -11/Scrapyard -10/Materials (discovered 5 exits: *Mat x3 / [*Min] / *Sub) -10/Subcaves (discovered 2 exits: [*Mat x2]) History --------- Turn | Location | Event 1 | -11/Scrapyard | Discovered new exit (range 2) 77 | -11/Scrapyard | Entered Materials 155 | -10/Materials | Discovered new exit (range 11) 178 | -10/Materials | Discovered new exit (range 8) 312 | -10/Materials | Build established: Mutant 380 | -10/Materials | Discovered new exit (range 7) 580 | -10/Materials | Discovered new exit (range 3) 812 | -10/Materials | Identified exit to Materials 812 | -10/Materials | Identified exit to Subcaves 865 | -10/Materials | Learned location of 1 exit from Storage 909 | -10/Materials | Learned location of Subcaves (-10) 945 | -10/Materials | Learned 4 Recycling zone layouts 970 | -10/Materials | Loaded intel: 6 terminal locations 1006 | -10/Materials | Learned 2 Storage zone layouts 1040 | -10/Materials | Learned location of 2 exits from Materials 1199 | -10/Materials | Entered Subcaves 1199 | -10/Subcaves | Discovered new exit (range 7) 1203 | -10/Subcaves | Shifting Twisted Machinery released Sub. Monowheel 1205 | -10/Subcaves | Shifting Twisted Machinery released Sub. Monowheel 1205 | -10/Subcaves | Learned location of Zion (-6) 1364 | -10/Subcaves | Core integrity fell below 50% 1417 | -10/Subcaves | Learned Materials stockpile data 1417 | -10/Subcaves | Discovered new exit (range 8) 1486 | -10/Subcaves | Shifting Twisted Machinery released Mak. Flight Unit 1499 | -10/Subcaves | Core integrity fell below 20% 1502 | -10/Subcaves | Destroyed by E4-79N(R) with Subdweller Shrapnel Launcher Last Messages --------------- 01375_ Aluminum Leg destroyed. 01381_ IZ-LV9(R) destroyed. 01383_ Acquired 29 matter. 01389_ Subatomizers dissect the Sub. Optics. 01391_ Acquired Sub. Monowheel. 01393_ Acquired 10 matter. 01417_ Acquired derelict log, extracted data. Data stored: Materials stockpile data. 01417_ EXIT=FOUND 01450_ GS-E5Z(R) suffers critical hit (Destroy). 01450_ GS-E5Z(R) destroyed. 01457_ The unstable cave ceiling collapses. 01461_ Acquired 40 matter. 01467_ Dropped Aluminum Leg. 01467_ Acquired Scrap Shield. Mak. Flight Unit falls loose from the Twisted Machinery. 01498_ Com. Wheel destroyed. 01498_ Assault Rifle destroyed. 01500_ Grenade Launcher destroyed. Map ----- +----------------------------------------------------+ | ?????????????????????????????????????????????????? | | ?????????????????????????????????????????????????? | | ?????????????????????????????????????????????????? | | ?????????????????????????????????????????????????? | | ?????????????????????????????????????????????????? | | ?????????????????????????????????????????????????? | | ?????????????????????????????????????????????????? | | ?????????????????????????????????????????????????? | | ?????????????????????????????????????????????????? | | ?????????????????????????????????????????????????? | | ?????????????????????????????????????????????????? | | ?????????????????????????????????????????????????? | | ???????????????????????????????????####?##???????? | | ???????????????? ???????############ ## #???????? | | ???????????????? ?????## #???????? | | ???????????????## ????# #????????? | | ??????????????##< <##?# #?# #?????????? | | ??????????????? < ## #?# #???####### | | ????????????????? ### ##### | | ?????????????????? ## ## = | | ??????????????????? ##### ### = " | | ??????????????????? #???# #?##### | | ????????????????????? ##### #?????# | | ??????????????????????# ; # ### ### | | ??????????????????????# ; ### " | | ??????????????????????# @ # # " | | ?????????????????????## ## ## | | ?????????????????????# R # ## | | ?????????????????????# " #?### | | ?????????????????????##; # ## #???## | | ??????????????????????# ## "## #????# | | ??????????????????????# # ""##"" #???# | | ??????????????????????###" ### "" ##"" #???### | | ????????????????????????# "#??#" #??## ##?????# | | ????????????????????????## ???"=##?????#??????? | | ?????????????????????????## ??"""#?????????????? | | ??????????????????????????#####?? #?????????????? | | ????????????????????????????????? ??????????????? | | ?????????????????????????????????????????????????? | | ?????????????????????????????????????????????????? | | ?????????????????????????????????????????????????? | | ?????????????????????????????????????????????????? | | ?????????????????????????????????????????????????? | | ?????????????????????????????????????????????????? | | ?????????????????????????????????????????????????? | | ?????????????????????????????????????????????????? | | ?????????????????????????????????????????????????? | | ?????????????????????????????????????????????????? | | ?????????????????????????????????????????????????? | | ?????????????????????????????????????????????????? | +----------------------------------------------------+ Best States ------------- Heat Dissipation 25 Energy Generation 10 Energy Capacity 125 Matter Stores 300 Matter Capacity 300 Sight Range 16 Terrain Scan Density 10 Evasion (%) 55 Item Schematics ----------------- None Robot Schematics ------------------ None Fabricated ------------ Nothing Repaired ---------- Nothing Alien Tech Used ----------------- None Achievements -------------- None Challenges ------------ None Game ------ Seed TerrorNanofilamentsSpecial Manual? 0 Play Time 00:19:04 Cumulative 140.9 hours Start 2025.07.14 @ 12:46:13 End 2025.07.14 @ 13:19:59 Sessions 1 Manual Loads 0 Difficulty Rogue Special Mode None Game No. 141 Rogue 139 Adventurer 2 Explorer 0 Win Type - Total 0 Types 0/0/0/0/0/0/0/0/0/0 Lore% 61 Gallery% 56 Achievement% 44 Wizard Run 0 Options --------- Layout 2 ASCII 0 Keyboard 1 Movement Numpad Keybinds 0 Fullscreen 1 Font 48/Smallcaps Map View 50x66 Zoom Use 0% Tactical HUD 1 Map Filters NONE Filters NONE Steam 1 RUN: 3e4e26e7-6cbf-4a9f-acd3-b6fb62727928